bitfinex-derivatives/quotes_BTCF0:USTF0_20250212
["timestamp","ask_amount","ask_price","bid_price","bid_amount"]
[1739337081777,0.00015659,95792.0,95789.0,0.0629]
[1739337083976,0.00015659,95792.0,95789.0,0.0659]
[1739337084375,0.00015659,95792.0,95789.0,0.003]
[1739337084576,0.2088404,95791.0,95789.0,0.003]
[1739337084781,0.2088404,95791.0,95789.0,0.008]
[1739337085075,0.2088404,95791.0,95789.0,0.01]
[1739337085476,0.00015659,95792.0,95789.0,0.002]
[1739337085672,0.2088425,95790.0,95789.0,0.003]
[1739337085867,0.2801625,95790.0,95789.0,0.003]
[1739337093282,0.2088425,95790.0,95789.0,0.003]
[1739337093877,0.2804025,95790.0,95789.0,0.003]
[1739337094383,0.00015659,95792.0,95789.0,0.003]
[1739337094679,0.00015659,95792.0,95790.0,0.2088425]
[1739337095383,0.07224,95813.0,95790.0,0.2088425]
[1739337095572,0.07224,95813.0,95803.0,0.12578763]
[1739337095882,0.3608,95814.0,95803.0,0.12578763]
[1739337096472,0.3608,95814.0,95806.0,0.3608]
[1739337096785,0.00015659,95818.0,95807.0,0.0627]
[1739337096968,0.00015659,95818.0,95807.0,0.1251]
[1739337097572,0.002,95814.0,95807.0,0.1251]
[1739337098074,0.002,95814.0,95807.0,0.1261]
[1739337098272,0.002,95814.0,95808.0,0.0614]
[1739337098478,0.00815659,95818.0,95808.0,0.0614]
[1739337098677,0.00215659,95818.0,95817.0,0.3608]
[1739337100279,0.00215659,95818.0,95817.0,0.37317825]
[1739337100475,0.00015659,95818.0,95817.0,0.37317825]
[1739337101182,0.00015659,95818.0,95817.0,0.38317825]
[1739337101584,0.00015659,95818.0,95817.0,0.38017825]
[1739337101778,0.00015659,95818.0,95817.0,0.37517825]
[1739337102089,0.00015659,95818.0,95817.0,0.01937825]
[1739337102571,0.00015659,95818.0,95817.0,0.007]
[1739337103186,0.00015659,95818.0,95817.0,0.005]
[1739337103384,0.00015659,95818.0,95817.0,0.007]
[1739337103782,0.00015659,95818.0,95817.0,0.01964248]
[1739337103985,0.00015659,95818.0,95817.0,0.002]
[1739337104186,0.00015659,95818.0,95817.0,0.008]
[1739337104579,0.00015659,95818.0,95817.0,0.006]
[1739337104887,0.00015659,95818.0,95808.0,0.12578763]
[1739337105276,0.00015659,95818.0,95817.0,0.006]
[1739337105785,0.07615659,95818.0,95817.0,0.006]
[1739337107071,0.28493809,95818.0,95817.0,0.002]
[1739337107277,0.50603809,95818.0,95817.0,0.002]
[1739337107679,0.29725659,95818.0,95808.0,0.01236862]
[1739337107879,0.5696013,95809.0,95796.0,0.0616]
[1739337109683,0.22225659,95818.0,95803.0,0.3608]
[1739337110193,0.3608,95809.0,95799.0,0.00215659]
[1739337110378,0.3608,95809.0,95799.0,0.01215659]
[1739337110581,0.001,95809.0,95799.0,0.01015659]
[1739337110793,0.001,95809.0,95799.0,0.01415659]
[1739337111088,0.2088082,95806.0,95799.0,0.01415659]
[1739337111282,0.2088082,95806.0,95803.0,0.015]
[1739337112993,0.07764,95810.0,95803.0,0.015]
[1739337113183,0.2088082,95806.0,95799.0,0.01215659]
[1739337113585,0.2088082,95806.0,95803.0,0.002]
[1739337113987,0.2088082,95806.0,95803.0,0.005]
[1739337114295,0.2088082,95806.0,95803.0,0.007]
[1739337115286,0.2088082,95806.0,95803.0,0.006]
[1739337116386,0.2088082,95806.0,95803.0,0.004]
[1739337116593,0.2088082,95806.0,95803.0,0.005]
[1739337116788,0.2088082,95806.0,95803.0,0.001]
[1739337116997,0.2088082,95806.0,95803.0,0.003]
[1739337117189,0.2088082,95806.0,95803.0,0.005]
[1739337117495,0.0774,95805.0,95803.0,0.005]
[1739337117697,0.0774,95805.0,95803.0,0.003]
[1739337118396,0.0774,95805.0,95803.0,0.001]
[1739337118699,0.0774,95805.0,95803.0,0.004]
[1739337118899,0.0774,95809.0,95803.0,0.2128141]
[1739337119301,0.0774,95809.0,95803.0,0.2118141]
[1739337119494,0.0774,95809.0,95803.0,0.2138141]
[1739337120100,0.0774,95809.0,95803.0,0.2128141]
[1739337120299,0.2087945,95813.0,95803.0,0.2128141]
[1739337120494,0.07768,95812.0,95803.0,0.2128141]
[1739337121002,0.001,95809.0,95803.0,0.2168141]
[1739337121206,0.001,95809.0,95803.0,0.2198141]
[1739337121594,0.07768,95812.0,95803.0,0.2148141]
[1739337122803,0.07744,95811.0,95803.0,0.2148141]
[1739337123190,0.07744,95811.0,95803.0,0.2158141]
[1739337123491,0.07744,95811.0,95803.0,0.2178141]
[1739337123897,0.07744,95811.0,95803.0,0.2128141]
[1739337124092,0.07844,95811.0,95803.0,0.2228141]
[1739337124712,0.07744,95811.0,95803.0,0.2188141]
[1739337126693,0.07744,95811.0,95803.0,0.2118141]
[1739337126892,0.07844,95811.0,95803.0,0.2208141]
[1739337127297,0.07844,95811.0,95803.0,0.2178141]
[1739337127505,0.07744,95811.0,95803.0,0.2128141]
[1739337127706,0.07744,95811.0,95803.0,0.2198141]
[1739337127908,0.2862372,95811.0,95803.0,0.2198141]
[1739337128409,0.07744,95811.0,95803.0,0.007]
[1739337128596,0.2088068,95807.0,95803.0,0.013]
[1739337129103,0.2088101,95805.0,95803.0,0.012]
[1739337129904,0.3608,95804.0,95803.0,0.012]
[1739337130211,0.3608,95804.0,95803.0,0.003]
[1739337130407,0.3608,95804.0,95803.0,0.01]
[1739337130801,0.3608,95804.0,95803.0,0.009]
[1739337131004,0.3608,95804.0,95803.0,0.002]
[1739337131199,0.3608,95804.0,95803.0,0.007]
[1739337132105,0.4874,95804.0,95803.0,0.007]
[1739337133410,0.4874,95804.0,95803.0,0.006]
[1739337133612,0.5642,95804.0,95803.0,0.006]
[1739337140713,0.3608,95804.0,95803.0,0.006]
[1739337141015,0.3608,95812.0,95811.0,0.2087968]
[1739337142516,0.3628,95812.0,95811.0,0.22078734]
[1739337143015,0.3628,95812.0,95811.0,0.01199054]
[1739337143206,0.3628,95812.0,95811.0,0.2087968]
[1739337143815,0.2088036,95808.0,95804.0,0.01191975]
[1739337144119,0.2088098,95805.0,95799.0,0.00015659]
[1739337144710,0.2088098,95805.0,95799.0,0.012163]
[1739337144911,0.2088098,95805.0,95799.0,0.00015659]
[1739337145114,0.2088098,95805.0,95804.0,0.002]
[1739337146515,0.2088098,95805.0,95799.0,0.00415659]
[1739337146719,0.3608,95812.0,95799.0,0.00415659]
[1739337147013,0.2088133,95804.0,95799.0,0.01650451]
[1739337147205,0.2088133,95804.0,95799.0,0.00015659]
[1739337147411,0.2088207,95800.0,95799.0,0.00015659]
[1739337147914,0.2088207,95800.0,95799.0,0.01647766]
[1739337148119,0.2088207,95800.0,95799.0,0.00415659]
[1739337148819,0.2088207,95800.0,95799.0,0.01215659]
[1739337149518,0.2088207,95800.0,95799.0,0.01115659]
[1739337150020,0.2088207,95800.0,95799.0,0.01015659]
[1739337151812,0.2098207,95800.0,95799.0,0.01115659]
[1739337152820,0.2098207,95800.0,95799.0,0.01215659]
[1739337153229,0.2098207,95800.0,95799.0,0.01115659]
[1739337154820,0.2088207,95800.0,95799.0,0.00715659]
[1739337163425,0.07552,95801.0,95799.0,0.00715659]
[1739337163931,0.3608,95803.0,95799.0,0.00715659]
[1739337164628,0.3608,95812.0,95802.0,0.2088164]
[1739337165530,0.2088058,95807.0,95800.0,0.12578763]
[1739337165731,0.3608,95812.0,95802.0,0.002]
[1739337166028,0.2088092,95806.0,95802.0,0.002]
[1739337166930,0.2088092,95806.0,95802.0,0.004]
[1739337168933,0.2088092,95806.0,95802.0,0.006]
[1739337169531,0.5696129,95804.0,95802.0,0.01793466]
[1739337169927,0.5696129,95804.0,95802.0,0.01593466]
[1739337170133,0.5696129,95804.0,95802.0,0.01793466]
[1739337172033,0.5696129,95804.0,95802.0,0.01593466]
[1739337172229,0.5696129,95804.0,95802.0,0.01393466]
[1739337172533,0.5696129,95804.0,95802.0,0.01593466]
[1739337173824,0.6440929,95804.0,95802.0,0.01593466]
[1739337174840,0.6440129,95804.0,95802.0,0.01593466]
[1739337177033,0.6440129,95804.0,95802.0,0.01693466]
[1739337177726,0.6440129,95804.0,95802.0,0.01393466]
[1739337177927,0.6440129,95804.0,95802.0,0.01593466]
[1739337180930,0.6440129,95804.0,95802.0,0.01393466]
[1739337181130,0.6450129,95804.0,95802.0,0.01393466]
[1739337181731,0.6450129,95804.0,95802.0,0.01193466]
[1739337182037,0.2088207,95800.0,95799.0,0.00015659]
[1739337182734,0.2088207,95800.0,95799.0,0.01173486]
[1739337184335,0.2088207,95800.0,95799.0,0.01273486]
[1739337184841,0.2088207,95800.0,95799.0,0.01473486]
[1739337185234,0.2088207,95800.0,95799.0,0.01373486]
[1739337186435,0.2088207,95800.0,95799.0,0.01273486]
[1739337186635,0.2108207,95800.0,95799.0,0.01273486]
[1739337187236,0.2088207,95800.0,95799.0,0.01273486]
[1739337187543,0.2088207,95800.0,95799.0,0.01373486]
[1739337190445,0.0744,95804.0,95799.0,0.01373486]
[1739337190947,0.0744,95804.0,95799.0,0.01273486]
[1739337191153,0.0744,95804.0,95799.0,0.01473486]
[1739337191446,0.0744,95804.0,95799.0,0.01573486]
[1739337191742,0.07336,95811.0,95799.0,0.01473486]
[1739337191945,0.07336,95811.0,95802.0,0.2088148]
[1739337194044,0.07436,95811.0,95802.0,0.2088148]
[1739337194239,0.001,95811.0,95801.0,0.48798763]
[1739337194443,0.001566,95824.0,95820.0,0.208776]
[1739337194744,0.001566,95824.0,95822.0,0.2087719]
[1739337194941,0.001566,95824.0,95821.0,0.0585]
[1739337196941,0.004566,95824.0,95821.0,0.0595]
[1739337198046,0.004566,95824.0,95819.0,0.1422783]
[1739337199645,0.004566,95824.0,95819.0,0.1432783]
[1739337199845,0.004566,95824.0,95819.0,0.0126959]
[1739337200643,0.2087757,95821.0,95819.0,0.0126959]
[1739337201349,0.365366,95824.0,95821.0,0.2087743]
[1739337201651,0.365366,95824.0,95822.0,0.1376]
[1739337202346,0.362366,95824.0,95822.0,0.1376]
[1739337203141,0.33174386,95832.0,95822.0,0.1386]
[1739337203343,0.27944386,95832.0,95831.0,0.2087532]
[1739337203536,0.27944386,95832.0,95822.0,0.26438763]
[1739337203742,0.27944386,95832.0,95822.0,0.26454422]
[1739337203949,0.27944386,95832.0,95828.0,0.2087595]
[1739337204147,0.00015659,95832.0,95828.0,0.2087595]
[1739337205052,0.208759,95829.0,95822.0,0.13875659]
[1739337205348,0.2087637,95827.0,95822.0,0.13875659]
[1739337206050,0.2087637,95827.0,95822.0,0.13775659]
[1739337206754,0.2087637,95827.0,95822.0,0.13875659]
[1739337208155,0.03694063,95827.0,95822.0,0.13875659]
[1739337208357,0.00015659,95832.0,95822.0,0.13875659]
[1739337208746,0.2087637,95827.0,95822.0,0.13875659]
[1739337210747,0.2087637,95827.0,95822.0,0.14075659]
[1739337211251,0.2087637,95827.0,95822.0,0.13975659]
[1739337211456,0.2087637,95827.0,95822.0,0.14375659]
[1739337211757,0.00015659,95832.0,95822.0,0.00615659]
[1739337211949,0.2087672,95825.0,95822.0,0.00615659]
[1739337213258,0.00015659,95832.0,95822.0,0.00615659]
[1739337213461,0.20890899,95832.0,95822.0,0.00615659]
[1739337214258,0.2087609,95828.0,95822.0,0.00615659]
[1739337215049,0.2087609,95828.0,95822.0,0.00215659]
[1739337215250,0.2087609,95828.0,95822.0,0.01315659]
[1739337216058,0.2087609,95828.0,95822.0,0.00615659]
[1739337216555,0.3608,95830.0,95822.0,0.00615659]
[1739337216761,0.2087692,95824.0,95822.0,0.00915659]
[1739337217157,0.2054,95823.0,95822.0,0.00915659]
[1739337217351,0.2054,95823.0,95822.0,0.00615659]
[1739337217957,0.2054,95823.0,95822.0,0.00415659]
[1739337218154,0.2054,95823.0,95822.0,0.00515659]
[1739337218459,0.2054,95823.0,95822.0,0.00115659]
[1739337218658,0.2054,95823.0,95822.0,0.00015659]
[1739337220154,0.2087946,95812.0,95811.0,0.00156551]
[1739337221065,0.2087946,95812.0,95811.0,0.01348154]
[1739337221663,0.2087946,95812.0,95811.0,0.01948154]
[1739337222861,0.07228,95814.0,95811.0,0.01948154]
[1739337223665,0.0689,95823.0,95811.0,0.01748154]
[1739337223863,0.0689,95823.0,95813.0,0.1648476]
[1739337224064,0.0689,95823.0,95815.0,0.2087865]
[1739337225362,0.0689,95823.0,95815.0,0.2237865]
[1739337226161,0.0689,95823.0,95815.0,0.015]
[1739337226361,0.2087774,95820.0,95815.0,0.015]
[1739337226664,0.2087774,95820.0,95816.0,0.2087847]
[1739337227770,0.2087774,95820.0,95816.0,0.2127847]
[1739337228366,0.0689,95823.0,95815.0,0.013]
[1739337228562,0.0689,95823.0,95819.0,0.2087782]
[1739337231359,0.0689,95823.0,95819.0,0.2157782]
[1739337231655,0.208777,95821.0,95819.0,0.2197782]
[1739337232166,0.208777,95821.0,95819.0,0.2207782]
[1739337233063,0.208777,95821.0,95819.0,0.2177782]
[1739337233571,0.208777,95821.0,95819.0,0.009]
[1739337233770,0.208777,95821.0,95819.0,0.005]
[1739337233968,0.208777,95821.0,95819.0,0.008]
[1739337234364,0.208777,95821.0,95819.0,0.005]
[1739337234662,0.208777,95821.0,95819.0,0.01]
[1739337235064,0.208777,95821.0,95819.0,0.008]
[1739337235365,0.208777,95821.0,95819.0,0.003]
[1739337235572,0.208777,95821.0,95819.0,0.004]
[1739337236270,0.208777,95821.0,95819.0,0.005]
[1739337237668,0.208777,95821.0,95819.0,0.002]
[1739337237874,0.208777,95821.0,95819.0,0.006]
[1739337238364,0.208777,95821.0,95819.0,0.005]
[1739337238565,0.208777,95821.0,95819.0,0.001]
[1739337239278,0.208777,95821.0,95819.0,0.011]
[1739337240475,0.208777,95821.0,95819.0,0.01]
[1739337240660,0.208777,95821.0,95819.0,0.012]
[1739337240866,0.208777,95821.0,95819.0,0.005]
[1739337241065,0.208777,95821.0,95819.0,0.007]
[1739337241675,0.208777,95821.0,95819.0,0.011]
[1739337242176,0.07208,95828.0,95819.0,0.011]
[1739337242473,0.2087619,95827.0,95819.0,0.2227781]
[1739337242674,0.2087619,95827.0,95820.0,0.0689]
[1739337243475,0.2087619,95827.0,95821.0,0.2087741]
[1739337243880,0.07144,95833.0,95829.0,0.2087576]
[1739337244571,0.569546,95835.0,95829.0,0.2087576]
[1739337244773,0.208746,95835.0,95829.0,0.2087576]
[1739337245579,0.3608,95843.0,95821.0,0.011]
[1739337245580,0.3608,95843.0,95831.0,0.2087533]
[1739337246080,0.5695282,95843.0,95831.0,0.2087533]
[1739337246874,0.2087311,95842.0,95831.0,0.2087533]
[1739337247081,0.3608,95843.0,95831.0,0.004]
[1739337247470,0.3608,95843.0,95830.0,0.2766537]
[1739337247471,0.5695286,95843.0,95830.0,0.2766537]
[1739337247672,0.5695286,95843.0,95831.0,0.004]
[1739337248072,0.5695286,95843.0,95830.0,0.2766537]
[1739337248273,0.5695286,95843.0,95831.0,0.004]
[1739337248580,0.5695286,95843.0,95831.0,0.013]
[1739337249081,0.5695286,95843.0,95831.0,0.004]
[1739337250181,0.5695286,95843.0,95830.0,0.2866537]
[1739337250378,0.5695286,95843.0,95831.0,0.004]
[1739337250774,0.5695286,95843.0,95830.0,0.2866537]
[1739337250975,0.5695286,95843.0,95831.0,0.013]
[1739337252875,0.5695286,95843.0,95831.0,0.009]
[1739337253068,0.3608,95843.0,95831.0,0.009]
[1739337253275,0.2087311,95842.0,95831.0,0.009]
[1739337253474,0.2087311,95842.0,95831.0,0.013]
[1739337254584,0.3608,95843.0,95831.0,0.013]
[1739337254780,0.2087311,95842.0,95834.0,0.2087458]
[1739337256185,0.2087311,95842.0,95835.0,0.2087431]
[1739337257480,0.2087311,95842.0,95835.0,0.2117431]
[1739337257988,0.2087311,95842.0,95835.0,0.2177431]
[1739337259690,0.2087311,95842.0,95835.0,0.2147431]
[1739337259891,0.2087311,95842.0,95835.0,0.2177431]
[1739337261092,0.2087311,95842.0,95835.0,0.2207431]
[1739337261590,0.208734,95840.0,95835.0,0.2207431]
[1739337261795,0.208734,95840.0,95835.0,0.2117431]
[1739337261998,0.208734,95840.0,95835.0,0.2177431]
[1739337262886,0.208734,95840.0,95835.0,0.2187431]
[1739337263493,0.208734,95840.0,95835.0,0.2217431]
[1739337264081,0.208734,95840.0,95835.0,0.2207431]
[1739337264486,0.208734,95840.0,95835.0,0.2217431]
[1739337264900,0.208734,95840.0,95835.0,0.2187431]
[1739337265494,0.208734,95840.0,95836.0,0.2087417]
[1739337265997,0.3608,95843.0,95836.0,0.2087417]
[1739337266788,0.3608,95843.0,95836.0,0.2127417]
[1739337267794,0.3608,95843.0,95836.0,0.2087417]
[1739337267994,0.3608,95843.0,95836.0,0.2217417]
[1739337269395,0.3608,95843.0,95836.0,0.2177417]
[1739337269588,0.3608,95843.0,95836.0,0.2217417]
[1739337269995,0.3608,95843.0,95836.0,0.2127417]
[1739337270199,0.3608,95843.0,95836.0,0.2217417]
[1739337270787,0.3608,95843.0,95836.0,0.2127417]
[1739337270989,0.3608,95843.0,95836.0,0.2217417]
[1739337271390,0.00015659,95848.0,95836.0,0.013]
[1739337271593,0.00015659,95848.0,95847.0,0.2087184]
[1739337273299,0.00015659,95848.0,95847.0,0.2097184]
[1739337273490,0.00015659,95848.0,95847.0,0.2107184]
[1739337275295,0.00015659,95848.0,95847.0,0.22556967]
[1739337286105,0.00015659,95848.0,95847.0,0.28996967]
[1739337287504,0.00015659,95848.0,95847.0,0.22556967]
[1739337288500,0.20887279,95848.0,95847.0,0.01685127]
[1739337288701,0.56967279,95848.0,95847.0,0.01685127]
[1739337288903,0.2087445,95835.0,95834.0,0.3608]
[1739337289503,0.2087388,95838.0,95834.0,0.3608]
[1739337289704,0.2087388,95838.0,95834.0,0.37559084]
[1739337290104,0.2727388,95838.0,95834.0,0.37559084]
[1739337290606,0.2727388,95838.0,95834.0,0.37859084]
[1739337290806,0.2727388,95838.0,95834.0,0.38559084]
[1739337291798,0.3377388,95838.0,95834.0,0.38559084]
[1739337292199,0.4032388,95838.0,95834.0,0.38559084]
[1739337292901,0.4032388,95838.0,95834.0,0.37859084]
[1739337293107,0.4032388,95838.0,95834.0,0.38459084]
[1739337293705,0.1945,95838.0,95834.0,0.38459084]
[1739337294107,0.1945,95838.0,95834.0,0.37859084]
[1739337294312,0.4032388,95838.0,95834.0,0.38459084]
[1739337296707,0.4032388,95838.0,95834.0,0.37859084]
[1739337296900,0.4032388,95838.0,95834.0,0.38459084]
[1739337297103,0.4032388,95838.0,95834.0,0.38159084]
[1739337297303,0.4032388,95838.0,95834.0,0.38459084]
[1739337297706,0.4032388,95838.0,95834.0,0.38159084]
[1739337297905,0.4032388,95838.0,95834.0,0.38559084]
[1739337298105,0.4032388,95838.0,95834.0,0.59433564]
[1739337299008,0.4032388,95838.0,95834.0,0.58833564]
[1739337299214,0.4032388,95838.0,95834.0,0.59433564]
[1739337299603,0.4032388,95838.0,95834.0,0.59333564]
[1739337299803,0.4032388,95838.0,95834.0,0.59433564]
[1739337300708,0.4032388,95838.0,95834.0,0.59333564]
[1739337301316,0.1945,95838.0,95834.0,0.59333564]
[1739337302004,0.1945,95838.0,95834.0,0.58733564]
[1739337302199,0.1945,95838.0,95834.0,0.59333564]
[1739337303011,0.1945,95838.0,95834.0,0.38459084]
[1739337303312,0.1945,95838.0,95836.0,0.2087418]
[1739337303710,0.4032385,95838.0,95834.0,0.38459084]
[1739337303907,0.2087445,95835.0,95834.0,0.02079084]
[1739337304110,0.2087445,95835.0,95834.0,0.02379084]
[1739337305513,0.2087445,95835.0,95834.0,0.02079084]
[1739337306021,0.2087445,95835.0,95834.0,0.01779084]
[1739337306208,0.2087445,95835.0,95834.0,0.01979084]
[1739337306411,0.2087706,95823.0,95822.0,0.00015659]
[1739337306710,0.5695706,95823.0,95822.0,0.00015659]
[1739337307715,0.5695706,95823.0,95822.0,0.01389957]
[1739337307916,0.5695706,95823.0,95822.0,0.00015659]
[1739337308917,0.5695706,95823.0,95822.0,0.01408653]
[1739337309124,0.5695706,95823.0,95822.0,0.02508653]
[1739337309824,0.5695706,95823.0,95822.0,0.01408653]
[1739337310913,0.5695706,95823.0,95822.0,0.00015659]
[1739337311110,0.5695706,95823.0,95822.0,1e-08]
[1739337311315,0.2088186,95801.0,95795.0,0.0012238]
[1739337311521,0.2088295,95796.0,95795.0,0.0012238]
[1739337312323,0.2088382,95792.0,95791.0,0.00156563]
[1739337313318,0.2088382,95792.0,95791.0,0.01519732]
[1739337313720,0.2088382,95792.0,95791.0,0.02219732]
[1739337314926,0.2088382,95792.0,95791.0,0.03719732]
[1739337316629,0.2088382,95792.0,95791.0,0.02880868]
[1739337324631,0.2088382,95792.0,95791.0,0.02080868]
[1739337326431,0.2088382,95792.0,95791.0,0.01680868]
[1739337327027,0.2088382,95792.0,95791.0,0.00980868]
[1739337327227,0.2088382,95792.0,95791.0,0.01880868]
[1739337327627,0.2088382,95792.0,95791.0,0.01780868]
[1739337327829,0.2088382,95792.0,95791.0,0.00880868]
[1739337328136,0.2088382,95792.0,95791.0,0.01580868]
[1739337328335,0.2088382,95792.0,95791.0,0.009]
[1739337329128,0.2088382,95792.0,95791.0,0.002]
[1739337329334,0.2088382,95792.0,95790.0,0.01415528]
[1739337329536,0.208847,95788.0,95786.0,0.00015651]
[1739337329739,0.208847,95788.0,95786.0,0.01430621]
[1739337331031,0.208847,95788.0,95786.0,0.01830621]
[1739337331841,0.208847,95788.0,95786.0,0.02530621]
[1739337332542,0.208847,95788.0,95786.0,0.01830621]
[1739337332742,0.208847,95788.0,95786.0,0.02130621]
[1739337333236,0.208847,95788.0,95786.0,0.02230621]
[1739337334042,0.208847,95788.0,95786.0,0.02130621]
[1739337334243,0.208847,95788.0,95786.0,0.02330621]
[1739337335044,0.208847,95788.0,95786.0,0.01630621]
[1739337335244,0.208847,95788.0,95786.0,0.02130621]
[1739337335542,0.2088294,95797.0,95787.0,0.3608]
[1739337335731,0.2088132,95804.0,95795.0,0.3608]
[1739337335931,0.07147651,95805.0,95796.0,0.1315]
[1739337335932,0.208822,95800.0,95796.0,0.1315]
[1739337337437,0.00015651,95805.0,95796.0,0.1315]
[1739337338340,0.002,95800.0,95796.0,0.14524673]
[1739337338939,0.20896761,95805.0,95796.0,0.14524673]
[1739337339140,0.20896761,95805.0,95796.0,0.16724673]
[1739337339747,0.20896761,95805.0,95796.0,0.16524673]
[1739337340243,0.00015651,95805.0,95804.0,0.3608]
[1739337341342,0.00015651,95805.0,95804.0,0.3648]
[1739337342749,0.00015651,95805.0,95804.0,0.3668]
[1739337343248,0.00015651,95805.0,95804.0,0.3698]
[1739337343644,0.00015651,95805.0,95804.0,0.3648]
[1739337343947,0.00015651,95805.0,95804.0,0.3668]
[1739337344449,0.00015651,95805.0,95804.0,0.3718]
[1739337345653,0.00015651,95805.0,95804.0,0.011]
[1739337346254,0.12975651,95805.0,95804.0,0.011]
[1739337346448,0.12975651,95805.0,95804.0,0.01]
[1739337346845,0.12975651,95805.0,95804.0,0.005]
[1739337347045,0.13075651,95805.0,95804.0,0.004]
[1739337347461,0.13075651,95805.0,95790.0,0.12567248]
[1739337347668,0.2088377,95793.0,95790.0,0.12567248]
[1739337347864,0.2088377,95793.0,95786.0,0.0140179]
[1739337348066,0.2088377,95793.0,95786.0,0.00015651]
[1739337349269,0.2088377,95793.0,95786.0,0.00315651]
[1739337350073,0.2098377,95793.0,95786.0,0.01115651]
[1739337351269,0.3608,95796.0,95786.0,0.00915651]
[1739337351462,0.2088393,95792.0,95786.0,0.00915651]
[1739337351661,0.2088393,95792.0,95786.0,0.00615651]
[1739337351867,0.2088393,95792.0,95786.0,0.00915651]
[1739337352561,0.3608,95796.0,95786.0,0.00915651]
[1739337352769,0.2088419,95791.0,95786.0,0.00915651]
[1739337353268,0.2088419,95791.0,95786.0,0.01015651]
[1739337353860,0.2088419,95791.0,95786.0,0.00315651]
[1739337354067,0.2088419,95791.0,95786.0,0.00915651]
[1739337354571,0.2088419,95791.0,95786.0,0.00315651]
[1739337354771,0.2088468,95789.0,95786.0,0.01015651]
[1739337354967,0.2088478,95788.0,95786.0,0.01015651]
[1739337355275,0.2088478,95788.0,95786.0,0.00715651]
[1739337355471,0.2088478,95788.0,95786.0,0.01015651]
[1739337355864,0.2088478,95788.0,95786.0,0.00715651]
[1739337356172,0.2088478,95788.0,95786.0,0.01015651]
[1739337356371,0.2088478,95788.0,95786.0,0.00315651]
[1739337356573,0.2088478,95788.0,95786.0,0.00915651]
[1739337357474,0.2088478,95788.0,95786.0,0.00815651]
[1739337363574,0.1312,95787.0,95786.0,0.00815651]
[1739337363875,0.2088711,95777.0,95766.0,0.00156588]
[1739337364073,0.2088711,95777.0,95776.0,0.37811972]
[1739337365075,0.2088711,95777.0,95776.0,0.01731972]
[1739337365270,0.2088898,95769.0,95767.0,0.00015659]
[1739337366066,0.0683,95773.0,95767.0,0.00015659]
[1739337366272,0.07132,95774.0,95770.0,0.2088849]
[1739337366472,0.001,95777.0,95770.0,0.2088849]
[1739337367184,0.001,95773.0,95770.0,0.2088849]
[1739337367973,0.001,95777.0,95770.0,0.2238849]
[1739337368371,0.001,95773.0,95770.0,0.2308849]
[1739337369368,0.001,95777.0,95770.0,0.2238849]
[1739337369673,0.001,95773.0,95770.0,0.2288849]
[1739337370378,0.001,95773.0,95770.0,0.2238849]
[1739337370581,0.001,95773.0,95770.0,0.015]
[1739337370975,0.00015659,95778.0,95770.0,0.005]
[1739337371175,0.001,95773.0,95770.0,0.014]
[1739337371974,0.001,95773.0,95770.0,0.015]
[1739337372174,0.02985265,95787.0,95770.0,0.015]
[1739337372374,0.2088704,95778.0,95770.0,0.14067248]
[1739337372579,0.2088704,95778.0,95770.0,0.13767248]
[1739337372781,0.001,95773.0,95770.0,0.13867248]
[1739337373084,0.001,95773.0,95770.0,0.13567248]
[1739337373286,0.001,95773.0,95770.0,0.13867248]
[1739337373487,0.2088793,95774.0,95770.0,0.008]
[1739337375678,0.2088821,95772.0,95770.0,0.008]
[1739337375879,0.2088821,95772.0,95770.0,0.005]
[1739337376080,0.2088821,95772.0,95770.0,0.008]
[1739337376788,0.2088821,95772.0,95770.0,0.006]
[1739337378186,0.2088821,95772.0,95770.0,0.008]
[1739337378689,0.2088821,95772.0,95770.0,0.005]
[1739337378983,0.2088821,95772.0,95770.0,0.007]
[1739337379380,0.2088821,95772.0,95770.0,0.008]
[1739337379579,0.07132,95776.0,95770.0,0.004]
[1739337379885,0.07132,95776.0,95770.0,0.001]
[1739337380279,0.07132,95776.0,95768.0,0.2761906]
[1739337380479,0.07132,95776.0,95770.0,0.001]
[1739337380480,0.001,95772.0,95770.0,0.001]
[1739337380988,0.07132,95776.0,95770.0,0.001]
[1739337381186,0.07132,95776.0,95770.0,0.002]
[1739337381980,0.2801947,95776.0,95770.0,0.002]
[1739337382187,0.2801947,95776.0,95770.0,0.001]
[1739337382391,0.2801947,95776.0,95770.0,0.002]
[1739337382783,0.3608,95779.0,95770.0,0.006]
[1739337382979,0.2088807,95773.0,95770.0,0.006]
[1739337383483,0.2088807,95773.0,95770.0,0.002]
[1739337395898,0.07132,95780.0,95770.0,0.002]
[1739337396100,0.2088839,95772.0,95770.0,0.002]
[1739337396802,0.2088839,95772.0,95770.0,0.001]
[1739337397099,0.2088839,95772.0,95770.0,0.002]
[1739337398490,0.2088839,95772.0,95770.0,0.001]
[1739337398699,0.2088839,95772.0,95770.0,0.002]
[1739337400194,0.2088839,95772.0,95770.0,0.001]
[1739337402495,0.0672,95771.0,95770.0,0.001]
[1739337402694,0.2760841,95771.0,95770.0,0.001]
[1739337403209,0.2088907,95768.0,95767.0,0.00015659]
[1739337406009,0.2088907,95768.0,95767.0,0.00115659]
[1739337419021,0.2088907,95768.0,95767.0,0.00515659]
[1739337419722,0.2088907,95768.0,95767.0,0.00115659]
[1739337426119,0.2089278,95751.0,95750.0,0.1968]
[1739337427028,0.2089278,95751.0,95750.0,0.21307209]
[1739337427728,0.2099278,95751.0,95750.0,0.22607209]
[1739337428524,0.2109278,95751.0,95750.0,0.23207209]
[1739337429128,0.2099278,95751.0,95750.0,0.22907209]
[1739337429732,0.2089278,95751.0,95750.0,0.22207209]
[1739337431226,0.2089278,95751.0,95750.0,0.21607209]
[1739337431433,0.2089278,95751.0,95750.0,0.22107209]
[1739337432327,0.2089278,95751.0,95750.0,0.21807209]
[1739337432536,0.2089278,95751.0,95750.0,0.22107209]
[1739337432833,0.2089278,95751.0,95750.0,0.02427209]
[1739337433625,0.2089278,95751.0,95750.0,0.02627209]
[1739337433822,0.3608,95756.0,95722.0,0.67117798]
[1739337434027,0.2089474,95742.0,95725.0,0.2089834]
[1739337434326,0.2802274,95742.0,95741.0,0.01623097]
[1739337434519,0.2802274,95742.0,95741.0,0.00015659]
[1739337434928,0.2802274,95742.0,95741.0,0.00815659]